[Event "23rd Alekhine Master 2019"]
[Site "Voronezh"]
[Date "2019.06.18"]
[Round "6.10"]
[White "Visakh N R"]
[Black "Fedorov, Alexei"]
[Result "1/2-1/2"]
[ECO "B30"]
[WhiteElo "2518"]
[BlackElo "2553"]
[Annotator "ChessBase"]
[PlyCount "87"]
[EventDate "2019.06.12"]
[EventType "swiss"]
[EventCountry "RUS"]
[SourceTitle "playchess.com"]
[Source "ChessBase"]
[SourceQuality "1"]
[TimeControl "40/5400+30:1800+30"]

1. e4 {[%emt 0:00:00]} c5 {[%emt 0:00:00]} 2. Nf3 {[%emt 0:00:00]} Nc6 {[%emt 0:00:24]} 3. Nc3 {[%emt 0:00:01]} e5 {[%emt 0:01:33]} 4. Bc4 {[%emt 0:00:06]} Be7 {[%emt 0:00:06]} 5. d3 {[%emt 0:00:04]} d6 {[%emt 0:00:07]} 6. O-O {[%emt 0:00:14]} Nf6 {[%emt 0:00:36]} 7. Ng5 {[%emt 0:00:29]} O-O {[%emt 0:00:17]} 8. f4 {[%emt 0:00:08]} exf4 {[%emt 0:02:17]} 9. Bxf4 {[%emt 0:00:08]} h6 {[%emt 0:00:13]} 10. Nf3 {[%emt 0:00:05]} Be6 {[%emt 0:00:15]} 11. Nd5 {[%emt 0:00:07]} Qd7 {[%emt 0:02:04]} 12. a4 {[%emt 0:03:10]} Bd8 {[%emt 0:06:23]} 13. Bd2 {[%emt 0:16:27]} Bxd5 {[%emt 0:01:07]} 14. exd5 {[%emt 0:03:48]} Ne7 {[%emt 0:08:28]} 15. Nh4 {[%emt 0:00:08]} Ng4 {[%emt 0:17:18]} 16. Bb5 {[%emt 0:39:15]} Qc8 {[%emt 0:00:09]} 17. Nf5 {[%emt 0:00:32]} Nxf5 {[%emt 0:06:41]} 18. Qxg4 {[%emt 0:00:02]} g6 {[%emt 0:07:50]} 19. a5 {[%emt 0:00:08]} a6 {[%emt 0:03:06]} 20. Ba4 {[%emt 0:00:07]} Bf6 {[%emt 0:01:50]} 21. c3 {[%emt 0:00:51]} h5 {[%emt 0:01:52]} 22. Qh3 {[%emt 0:00:07]} Be5 {[%emt 0:02:29]} 23. Rf2 {[%emt 0:03:56]} Ng7 {[%emt 0:05:00]} 24. Qxc8 {[%emt 0:07:32]} Raxc8 {[%emt 0:00:47]} 25. Bf4 {[%emt 0:00:06]} Rcd8 {[%emt 0:01:30]} 26. Bg5 {[%emt 0:03:20]} f6 {[%emt 0:05:35]} 27. Be3 {[%emt 0:00:06]} f5 {[%emt 0:00:30]} 28. Re1 {[%emt 0:01:09]} Bf6 {[%emt 0:03:18]} 29. Rfe2 {[%emt 0:07:07]} h4 {[%emt 0:03:09]} 30. Rd1 {[%emt 0:02:25]} g5 {[%emt 0:01:51]} 31. d4 {[%emt 0:01:11]} f4 {[%emt 0:03:24]} 32. Bf2 {[%emt 0:00:02]} c4 {[%emt 0:04:41]} 33. Rb1 {[%emt 0:01:09]} Rf7 {[%emt 0:02:24]} 34. b4 {[%emt 0:02:45]} cxb3 {[%emt 0:00:48]} 35. Rxb3 {[%emt 0:00:20]} Rc8 {[%emt 0:01:45]} 36. Be1 {[%emt 0:02:06]} Bd8 {[%emt 0:00:34]} 37. Be8 {[%emt 0:01:34]} Nxe8 {[%emt 0:03:08]} 38. Rxe8+ {[%emt 0:00:01]} Kg7 {[%emt 0:02:08]} 39. Kf2 {[%emt 0:00:22]} Rd7 {[%emt 0:00:33]} 40. Kf3 {[%emt 0:00:00]} Kf7 {[%emt 0:00:00]} 41. Rh8 {[%emt 0:04:18]} Kg7 {[%emt 0:00:34]} 42. Re8 {[%emt 0:00:35]} Kf7 {[%emt 0:00:16]} 43. Rh8 {[%emt 0:01:54]} Kg7 {[%emt 0:00:06]} 44. Re8 {[%emt 0:00:41]} 1/2-1/2

[Event "23rd Alekhine Master 2019"]
[Site "Voronezh"]
[Date "2019.06.18"]
[Round "6.11"]
[White "Puranik, Abhimanyu"]
[Black "Rodin, Dmitrij"]
[Result "1-0"]
[ECO "B42"]
[WhiteElo "2548"]
[BlackElo "2403"]
[Annotator "ChessBase"]
[PlyCount "113"]
[EventDate "2019.06.12"]
[EventType "swiss"]
[EventCountry "RUS"]
[SourceTitle "playchess.com"]
[Source "ChessBase"]
[SourceQuality "1"]
[TimeControl "40/5400+30:1800+30"]

1. e4 {[%emt 0:00:00]} c5 {[%emt 0:01:34]} 2. Nf3 {[%emt 0:00:00]} e6 {[%emt 0:00:05]} 3. d4 {[%emt 0:00:02]} cxd4 {[%emt 0:00:06]} 4. Nxd4 {[%emt 0:00:03]} a6 {[%emt 0:01:31]} 5. Bd3 {[%emt 0:00:51]} Qb6 {[%emt 0:08:22]} 6. Nb3 {[%emt 0:03:14]} Qc7 {[%emt 0:00:05]} 7. Nc3 {[%emt 0:01:52]} Nf6 {[%emt 0:01:19]} 8. f4 {[%emt 0:03:55]} d6 {[%emt 0:05:05]} 9. Be3 {[%emt 0:02:04]} Be7 {[%emt 0:00:31]} 10. Qe2 {[%emt 0:00:50]} b5 {[%emt 0:03:39]} 11. a3 {[%emt 0:02:11]} Bb7 {[%emt 0:01:37]} 12. O-O-O {[%emt 0:07:20]} Nc6 {[%emt 0:13:53]} 13. g4 {[%emt 0:01:27]} b4 {[%emt 0:03:58]} 14. axb4 {[%emt 0:00:15]} Nxb4 {[%emt 0:00:09]} 15. g5 {[%emt 0:02:38]} Nd7 {[%emt 0:03:24]} 16. Kb1 {[%emt 0:18:39]} O-O {[%emt 0:09:14]} 17. Rhg1 {[%emt 0:10:36]} Rfe8 {[%emt 0:08:36]} 18. Rg3 {[%emt 0:07:53]} Nxd3 {[%emt 0:07:22]} 19. Qxd3 {[%emt 0:00:43]} Rac8 {[%emt 0:06:31]} 20. e5 {[%emt 0:09:04]} d5 {[%emt 0:00:06]} 21. Bd4 {[%emt 0:01:08]} Bb4 {[%emt 0:07:29]} 22. Rh3 {[%emt 0:12:39]} Nf8 {[%emt 0:00:55]} 23. Na4 {[%emt 0:04:39]} Bc6 {[%emt 0:01:35]} 24. Nc3 {[%emt 0:02:28]} Bb7 {[%emt 0:04:48]} 25. f5 {[%emt 0:01:33]} exf5 {[%emt 0:00:47]} 26. Qxf5 {[%emt 0:00:05]} a5 {[%emt 0:02:15]} 27. Nb5 {[%emt 0:02:31]} Qd7 {[%emt 0:02:54]} 28. Qxd7 {[%emt 0:00:10]} Nxd7 {[%emt 0:00:01]} 29. c3 {[%emt 0:00:49]} Bf8 {[%emt 0:02:29]} 30. Nxa5 {[%emt 0:00:14]} Ba6 {[%emt 0:00:05]} 31. Nd6 {[%emt 0:01:38]} Bxd6 {[%emt 0:00:05]} 32. exd6 {[%emt 0:00:06]} Re6 {[%emt 0:03:14]} 33. Re3 {[%emt 0:00:34]} Rxd6 {[%emt 0:00:26]} 34. Rde1 {[%emt 0:00:08]} Nf8 {[%emt 0:01:33]} 35. Nb3 {[%emt 0:01:42]} Re6 {[%emt 0:00:54]} 36. Nc5 {[%emt 0:00:09]} Rxe3 {[%emt 0:00:07]} 37. Rxe3 {[%emt 0:00:06]} Bb5 {[%emt 0:00:03]} 38. b4 {[%emt 0:02:14]} Re8 {[%emt 0:00:23]} 39. Rxe8 {[%emt 0:00:47]} Bxe8 {[%emt 0:00:01]} 40. Nb7 {[%emt 0:00:00]} Nd7 {[%emt 0:00:00]} 41. Nd6 {[%emt 0:00:33]} Kf8 {[%emt 0:02:49]} 42. Bxg7+ {[%emt 0:26:43]} Kxg7 {[%emt 0:00:07]} 43. Nxe8+ {[%emt 0:00:05]} Kg6 {[%emt 0:00:05]} 44. h4 {[%emt 0:02:21]} h6 {[%emt 0:06:25]} 45. gxh6 {[%emt 0:00:30]} Kxh6 {[%emt 0:03:25]} 46. Nd6 {[%emt 0:01:40]} f6 {[%emt 0:00:21]} 47. Kc2 {[%emt 0:02:12]} Kh5 {[%emt 0:02:50]} 48. Nf5 {[%emt 0:00:13]} Nb6 {[%emt 0:04:49]} 49. Kd3 {[%emt 0:00:04]} Kg4 {[%emt 0:00:07]} 50. Ne3+ {[%emt 0:00:30]} Kxh4 {[%emt 0:00:10]} 51. Kd4 {[%emt 0:00:05]} Kg5 {[%emt 0:00:20]} 52. Nxd5 {[%emt 0:00:13]} Nxd5 {[%emt 0:00:52]} 53. Kxd5 {[%emt 0:00:03]} f5 {[%emt 0:00:05]} 54. b5 {[%emt 0:00:02]} f4 {[%emt 0:00:05]} 55. Ke4 {[%emt 0:00:04]} Kg4 {[%emt 0:00:16]} 56. b6 {[%emt 0:00:03]} f3 {[%emt 0:00:09]} 57. Ke3 {[%emt 0:00:04]} 1-0

[Event "23rd Alekhine Master 2019"]
[Site "Voronezh"]
[Date "2019.06.18"]
[Round "6.12"]
[White "Ulko, Jaroslav"]
[Black "Afanasiev, Nikita"]
[Result "1/2-1/2"]
[ECO "B40"]
[WhiteElo "2438"]
[BlackElo "2524"]
[Annotator "ChessBase"]
[PlyCount "82"]
[EventDate "2019.06.12"]
[EventType "swiss"]
[EventCountry "RUS"]
[SourceTitle "playchess.com"]
[Source "ChessBase"]
[SourceQuality "1"]
[TimeControl "40/5400+30:1800+30"]

1. e4 {[%emt 0:00:00]} c5 {[%emt 0:01:08]} 2. Nf3 {[%emt 0:00:00]} e6 {[%emt 0:00:12]} 3. d3 {[%emt 0:00:00]} Nc6 {[%emt 0:01:05]} 4. g3 {[%emt 0:00:05]} d5 {[%emt 0:04:25]} 5. Nbd2 {[%emt 0:00:47]} Nf6 {[%emt 0:04:52]} 6. Bg2 {[%emt 0:01:33]} Be7 {[%emt 0:02:04]} 7. O-O {[%emt 0:00:08]} Qc7 {[%emt 0:01:28]} 8. Re1 {[%emt 0:00:47]} b6 {[%emt 0:00:41]} 9. c3 {[%emt 0:01:21]} Bb7 {[%emt 0:10:09]} 10. exd5 {[%emt 0:07:46]} exd5 {[%emt 0:06:46]} 11. Nf1 {[%emt 0:03:57]} O-O {[%emt 0:02:02]} 12. Bf4 {[%emt 0:01:07]} Bd6 {[%emt 0:10:52]} 13. Bg5 {[%emt 0:01:47]} Nd7 {[%emt 0:00:57]} 14. Nh4 {[%emt 0:08:44]} Nd8 {[%emt 0:03:04]} 15. Nf5 {[%emt 0:09:20]} Ne6 {[%emt 0:06:02]} 16. Be7 {[%emt 0:00:31]} Bxe7 {[%emt 0:00:04]} 17. Nxe7+ {[%emt 0:00:05]} Kh8 {[%emt 0:00:03]} 18. Nxd5 {[%emt 0:00:10]} Qd6 {[%emt 0:00:10]} 19. Nfe3 {[%emt 0:02:41]} Rad8 {[%emt 0:00:05]} 20. Qh5 {[%emt 0:06:54]} b5 {[%emt 0:12:57]} 21. Rad1 {[%emt 0:09:33]} Qa6 {[%emt 0:04:50]} 22. f4 {[%emt 0:13:26]} Nb6 {[%emt 0:06:22]} 23. Nxb6 {[%emt 0:00:31]} Bxg2 {[%emt 0:00:34]} 24. Nxg2 {[%emt 0:00:23]} Qxb6 {[%emt 0:00:22]} 25. f5 {[%emt 0:01:17]} Nc7 {[%emt 0:03:26]} 26. Re7 {[%emt 0:00:50]} Kg8 {[%emt 0:03:56]} 27. f6 {[%emt 0:01:51]} Ne6 {[%emt 0:05:16]} 28. Ne3 {[%emt 0:03:07]} Rde8 {[%emt 0:06:25]} 29. Nd5 {[%emt 0:00:57]} Qd6 {[%emt 0:00:35]} 30. Re1 {[%emt 0:01:50]} Rxe7 {[%emt 0:00:42]} 31. Nxe7+ {[%emt 0:00:28]} Kh8 {[%emt 0:00:03]} 32. Nf5 {[%emt 0:00:14]} Qxd3 {[%emt 0:00:46]} 33. Rxe6 {[%emt 0:00:19]} Qb1+ {[%emt 0:01:56]} 34. Kg2 {[%emt 0:08:29]} g6 {[%emt 0:00:08]} 35. Qh6 {[%emt 0:04:00]} Qc2+ {[%emt 0:00:08]} 36. Kg1 {[%emt 0:00:40]} Qb1+ {[%emt 0:00:08]} 37. Kg2 {[%emt 0:00:06]} Qc2+ {[%emt 0:00:04]} 38. Kg1 {[%emt 0:00:12]} Qb1+ {[%emt 0:00:05]} 39. Kg2 {[%emt 0:00:08]} Qc2+ {[%emt 0:00:04]} 40. Kg1 {[%emt 0:00:00]} Qb1+ {[%emt 0:00:00]} 41. Kg2 {[%emt 0:00:11]} Qc2+ {[%emt 0:00:11]} 1/2-1/2

[Event "23rd Alekhine Master 2019"]
[Site "Voronezh"]
[Date "2019.06.18"]
[Round "6.13"]
[White "Tologontegin, Semetey"]
[Black "Tsydypov, Zhamsaran"]
[Result "0-1"]
[ECO "A36"]
[WhiteElo "2386"]
[BlackElo "2573"]
[Annotator "ChessBase"]
[PlyCount "122"]
[EventDate "2019.06.12"]
[EventType "swiss"]
[EventCountry "RUS"]
[SourceTitle "playchess.com"]
[Source "ChessBase"]
[SourceQuality "1"]
[TimeControl "40/5400+30:1800+30"]

1. c4 {[%emt 0:05:58]} c5 {[%emt 0:01:19]} 2. g3 {[%emt 0:00:13]} g6 {[%emt 0:01:26]} 3. Bg2 {[%emt 0:00:08]} Bg7 {[%emt 0:00:12]} 4. Nc3 {[%emt 0:00:09]} Nc6 {[%emt 0:00:46]} 5. b3 {[%emt 0:00:09]} Nf6 {[%emt 0:00:39]} 6. Bb2 {[%emt 0:00:25]} d6 {[%emt 0:00:27]} 7. e3 {[%emt 0:01:08]} Bg4 {[%emt 0:04:10]} 8. Nge2 {[%emt 0:05:46]} h5 {[%emt 0:00:43]} 9. h3 {[%emt 0:00:29]} Bf5 {[%emt 0:00:11]} 10. d3 {[%emt 0:02:37]} Qc8 {[%emt 0:01:33]} 11. Qd2 {[%emt 0:00:45]} O-O {[%emt 0:02:09]} 12. f3 {[%emt 0:04:45]} e5 {[%emt 0:00:38]} 13. g4 {[%emt 0:01:14]} Be6 {[%emt 0:00:05]} 14. Ne4 {[%emt 0:01:49]} Qd8 {[%emt 0:00:06]} 15. O-O-O {[%emt 0:02:29]} h4 {[%emt 0:06:08]} 16. f4 {[%emt 0:03:00]} exf4 {[%emt 0:00:51]} 17. Nxf4 {[%emt 0:02:22]} Nxe4 {[%emt 0:11:22]} 18. Bxe4 {[%emt 0:01:04]} Re8 {[%emt 0:00:04]} 19. Rhf1 {[%emt 0:00:51]} Qg5 {[%emt 0:01:15]} 20. Rf2 {[%emt 0:04:46]} Re7 {[%emt 0:02:13]} 21. Rdf1 {[%emt 0:04:21]} Ne5 {[%emt 0:03:29]} 22. Kb1 {[%emt 0:03:34]} Rae8 {[%emt 0:05:12]} 23. Qc2 {[%emt 0:01:12]} Nc6 {[%emt 0:08:06]} 24. Bxg7 {[%emt 0:11:30]} Kxg7 {[%emt 0:00:08]} 25. Qb2+ {[%emt 0:00:49]} Kh6 {[%emt 0:01:49]} 26. a3 {[%emt 0:21:47]} Ne5 {[%emt 0:01:13]} 27. Ka2 {[%emt 0:03:45]} b5 {[%emt 0:01:37]} 28. cxb5 {[%emt 0:00:54]} d5 {[%emt 0:01:56]} 29. Bf5 {[%emt 0:03:28]} gxf5 {[%emt 0:06:56]} 30. gxf5 {[%emt 0:04:35]} Bc8 {[%emt 0:01:56]} 31. f6 {[%emt 0:01:03]} Nxd3 {[%emt 0:00:49]} 32. Nxd3 {[%emt 0:00:15]} Rxe3 {[%emt 0:00:14]} 33. Nf4 {[%emt 0:03:42]} d4 {[%emt 0:02:27]} 34. Rg2 {[%emt 0:00:58]} Rg3 {[%emt 0:00:27]} 35. Rxg3 {[%emt 0:00:10]} hxg3 {[%emt 0:00:31]} 36. h4 {[%emt 0:00:07]} Qe5 {[%emt 0:09:38]} 37. a4 {[%emt 0:02:28]} Qe3 {[%emt 0:03:26]} 38. Qc2 {[%emt 0:01:13]} Re5 {[%emt 0:00:30]} 39. Qd1 {[%emt 0:00:46]} g2 {[%emt 0:03:01]} 40. Nxg2 {[%emt 0:00:00]} Qe2+ {[%emt 0:00:00]} 41. Ka3 {[%emt 0:01:00]} Qxg2 {[%emt 0:00:12]} 42. Qc1+ {[%emt 0:00:12]} Re3 {[%emt 0:01:35]} 43. Qxc5 {[%emt 0:00:52]} Be6 {[%emt 0:04:16]} 44. Rb1 {[%emt 0:02:14]} Qg3 {[%emt 0:03:11]} 45. Qb4 {[%emt 0:02:22]} Qe5 {[%emt 0:08:24]} 46. a5 {[%emt 0:21:17]} Qxf6 {[%emt 0:04:41]} 47. b6 {[%emt 0:01:22]} axb6 {[%emt 0:00:56]} 48. axb6 {[%emt 0:00:02]} Bd5 {[%emt 0:02:26]} 49. Qf8+ {[%emt 0:01:24]} Kh5 {[%emt 0:04:27]} 50. Qc5 {[%emt 0:00:37]} Qe5 {[%emt 0:00:38]} 51. Kb4 {[%emt 0:06:05]} Rc3 {[%emt 0:02:01]} 52. Re1 {[%emt 0:00:45]} Rxb3+ {[%emt 0:06:35]} 53. Ka4 {[%emt 0:00:03]} Re3 {[%emt 0:00:05]} 54. Rxe3 {[%emt 0:01:27]} dxe3 {[%emt 0:00:06]} 55. b7 {[%emt 0:00:02]} Qa1+ {[%emt 0:00:51]} 56. Kb5 {[%emt 0:00:23]} Qb2+ {[%emt 0:00:43]} 57. Ka5 {[%emt 0:00:03]} Qxb7 {[%emt 0:00:28]} 58. Qxe3 {[%emt 0:00:05]} Qc7+ {[%emt 0:00:17]} 59. Kb4 {[%emt 0:00:02]} Qc4+ {[%emt 0:00:13]} 60. Ka5 {[%emt 0:00:08]} Qa2+ {[%emt 0:00:17]} 61. Kb4 {[%emt 0:00:20]} Qb3+ {[%emt 0:00:08]} 0-1

[Event "23rd Alekhine Master 2019"]
[Site "Voronezh"]
[Date "2019.06.18"]
[Round "6.14"]
[White "Nozdrachev, Leonid"]
[Black "Volkov, Sergey"]
[Result "1/2-1/2"]
[ECO "D15"]
[WhiteElo "2395"]
[BlackElo "2567"]
[Annotator "ChessBase"]
[PlyCount "106"]
[EventDate "2019.06.12"]
[EventType "swiss"]
[EventCountry "RUS"]
[SourceTitle "playchess.com"]
[Source "ChessBase"]
[SourceQuality "1"]
[TimeControl "40/5400+30:1800+30"]

1. d4 {[%emt 0:00:00]} d5 {[%emt 0:00:00]} 2. c4 {[%emt 0:00:21]} c6 {[%emt 0:00:00]} 3. Nc3 {[%emt 0:00:18]} Nf6 {[%emt 0:00:06]} 4. Nf3 {[%emt 0:00:39]} a6 {[%emt 0:00:17]} 5. g3 {[%emt 0:01:11]} dxc4 {[%emt 0:00:50]} 6. a4 {[%emt 0:00:53]} e6 {[%emt 0:00:20]} 7. Bg2 {[%emt 0:00:43]} c5 {[%emt 0:00:09]} 8. dxc5 {[%emt 0:02:18]} Qxd1+ {[%emt 0:00:12]} 9. Nxd1 {[%emt 0:00:02]} Bd7 {[%emt 0:00:13]} 10. Ne5 {[%emt 0:06:09]} Bc6 {[%emt 0:01:44]} 11. Nxc6 {[%emt 0:12:56]} Nxc6 {[%emt 0:00:42]} 12. Ne3 {[%emt 0:01:52]} c3 {[%emt 0:04:41]} 13. bxc3 {[%emt 0:05:22]} Bxc5 {[%emt 0:02:12]} 14. Nc4 {[%emt 0:03:19]} Nd5 {[%emt 0:01:31]} 15. Rb1 {[%emt 0:04:21]} O-O-O {[%emt 0:01:10]} 16. Bd2 {[%emt 0:00:45]} Rd7 {[%emt 0:03:10]} 17. O-O {[%emt 0:02:51]} Rhd8 {[%emt 0:04:20]} 18. Rb2 {[%emt 0:01:47]} Kb8 {[%emt 0:03:46]} 19. Rfb1 {[%emt 0:02:08]} Ka7 {[%emt 0:00:26]} 20. a5 {[%emt 0:10:05]} Rc7 {[%emt 0:00:42]} 21. e4 {[%emt 0:02:08]} Nde7 {[%emt 0:00:30]} 22. Bf4 {[%emt 0:04:34]} Rcd7 {[%emt 0:00:23]} 23. Bf3 {[%emt 0:02:34]} Ng6 {[%emt 0:02:08]} 24. Nb6 {[%emt 0:05:09]} Nxf4 {[%emt 0:09:17]} 25. Nxd7 {[%emt 0:00:59]} Bxf2+ {[%emt 0:01:54]} 26. Rxf2 {[%emt 0:10:44]} Nh3+ {[%emt 0:00:10]} 27. Kg2 {[%emt 0:01:31]} Nxf2 {[%emt 0:00:16]} 28. Nc5 {[%emt 0:01:28]} Rd2 {[%emt 0:20:59]} 29. Rxb7+ {[%emt 0:01:35]} Ka8 {[%emt 0:00:03]} 30. e5 {[%emt 0:03:14]} Nxe5 {[%emt 0:04:46]} 31. Rd7+ {[%emt 0:10:32]} Nxf3 {[%emt 0:00:34]} 32. Kxf3 {[%emt 0:00:52]} Rxd7 {[%emt 0:00:29]} 33. Nxd7 {[%emt 0:00:02]} Nd1 {[%emt 0:00:54]} 34. Nb6+ {[%emt 0:02:23]} Kb7 {[%emt 0:00:02]} 35. Na4 {[%emt 0:00:24]} Nxc3 {[%emt 0:00:48]} 36. Nxc3 {[%emt 0:00:03]} Kc6 {[%emt 0:00:02]} 37. Ke3 {[%emt 0:00:57]} e5 {[%emt 0:01:39]} 38. g4 {[%emt 0:00:37]} f6 {[%emt 0:00:50]} 39. h4 {[%emt 0:00:44]} Kc5 {[%emt 0:00:33]} 40. Ne4+ {[%emt 0:00:00]} Kb4 {[%emt 0:00:00]} 41. Nd6 {[%emt 0:01:08]} Kxa5 {[%emt 0:01:56]} 42. Ne8 {[%emt 0:01:05]} Kb4 {[%emt 0:00:40]} 43. Nxg7 {[%emt 0:00:47]} a5 {[%emt 0:01:31]} 44. Kd2 {[%emt 0:09:56]} a4 {[%emt 0:02:34]} 45. Kc2 {[%emt 0:09:08]} e4 {[%emt 0:02:08]} 46. Nf5 {[%emt 0:05:53]} Kc4 {[%emt 0:04:18]} 47. g5 {[%emt 0:01:32]} fxg5 {[%emt 0:01:05]} 48. hxg5 {[%emt 0:00:02]} Kd5 {[%emt 0:03:53]} 49. g6 {[%emt 0:00:57]} hxg6 {[%emt 0:00:21]} 50. Ne7+ {[%emt 0:00:05]} Kd4 {[%emt 0:03:07]} 51. Nxg6 {[%emt 0:00:08]} e3 {[%emt 0:00:05]} 52. Nf4 {[%emt 0:00:12]} Ke4 {[%emt 0:00:14]} 53. Ne2 {[%emt 0:00:07]} Ke5 1/2-1/2

[Event "23rd Alekhine Master 2019"]
[Site "Voronezh"]
[Date "2019.06.19"]
[Round "7.1"]
[White "Pavlov, Sergey"]
[Black "Nesterov, Arseniy"]
[Result "1/2-1/2"]
[ECO "D11"]
[WhiteElo "2473"]
[BlackElo "2423"]
[Annotator "ChessBase"]
[PlyCount "57"]
[EventDate "2019.06.12"]
[EventType "swiss"]
[EventCountry "RUS"]
[SourceTitle "playchess.com"]
[Source "ChessBase"]
[SourceQuality "1"]
[TimeControl "40/5400+30:1800+30"]

1. c4 {[%emt 0:00:01]} c6 {[%emt 0:00:00]} 2. d4 {[%emt 0:00:34]} d5 {[%emt 0:00:00]} 3. Nf3 {[%emt 0:00:23]} Nf6 {[%emt 0:00:00]} 4. g3 {[%emt 0:00:20]} Bg4 {[%emt 0:00:34]} 5. Ne5 {[%emt 0:01:23]} Bf5 {[%emt 0:00:08]} 6. cxd5 {[%emt 0:02:05]} cxd5 {[%emt 0:00:39]} 7. Nc3 {[%emt 0:02:07]} Nc6 {[%emt 0:00:12]} 8. Bg2 {[%emt 0:01:19]} Rc8 {[%emt 0:00:42]} 9. O-O {[%emt 0:06:16]} e6 {[%emt 0:08:52]} 10. Qb3 {[%emt 0:09:56]} Qb6 {[%emt 0:05:10]} 11. Qxb6 {[%emt 0:07:42]} axb6 {[%emt 0:00:10]} 12. Be3 {[%emt 0:00:29]} Bd6 {[%emt 0:14:52]} 13. Nb5 {[%emt 0:09:08]} Bb8 {[%emt 0:00:12]} 14. Rac1 {[%emt 0:03:18]} Ke7 {[%emt 0:01:42]} 15. Bf4 {[%emt 0:04:15]} Nd7 {[%emt 0:04:11]} 16. Nxd7 {[%emt 0:09:13]} Kxd7 {[%emt 0:00:43]} 17. Bd2 {[%emt 0:01:35]} Na7 {[%emt 0:13:04]} 18. Nc3 {[%emt 0:08:38]} Rc4 {[%emt 0:00:24]} 19. e3 {[%emt 0:08:32]} Rhc8 {[%emt 0:00:38]} 20. Rfe1 {[%emt 0:01:34]} Bd3 {[%emt 0:13:08]} 21. Bh3 {[%emt 0:03:23]} Ke7 {[%emt 0:05:58]} 22. b3 {[%emt 0:04:45]} R4c6 {[%emt 0:00:54]} 23. Na4 {[%emt 0:00:14]} Rxc1 {[%emt 0:00:40]} 24. Rxc1 {[%emt 0:00:11]} Rxc1+ {[%emt 0:00:06]} 25. Bxc1 {[%emt 0:00:06]} Bb1 {[%emt 0:00:23]} 26. Nc3 {[%emt 0:00:44]} Bd3 {[%emt 0:00:21]} 27. Na4 {[%emt 0:01:02]} Bb1 {[%emt 0:00:06]} 28. Nc3 {[%emt 0:00:19]} Bd3 {[%emt 0:00:06]} 29. Na4 {[%emt 0:00:16]} 1/2-1/2

[Event "23rd Alekhine Master 2019"]
[Site "Voronezh"]
[Date "2019.06.19"]
[Round "7.2"]
[White "Utegaliyev, Azamat"]
[Black "Savchenko, Boris"]
[Result "1/2-1/2"]
[ECO "A13"]
[WhiteElo "2495"]
[BlackElo "2567"]
[Annotator "ChessBase"]
[PlyCount "96"]
[EventDate "2019.06.12"]
[EventType "swiss"]
[EventCountry "RUS"]
[SourceTitle "playchess.com"]
[Source "ChessBase"]
[SourceQuality "1"]
[TimeControl "40/5400+30:1800+30"]

1. c4 {[%emt 0:00:06]} e6 {[%emt 0:06:10]} 2. Nf3 {[%emt 0:00:41]} d5 {[%emt 0:00:16]} 3. e3 {[%emt 0:00:04]} c5 {[%emt 0:00:19]} 4. cxd5 {[%emt 0:02:06]} exd5 {[%emt 0:00:23]} 5. b3 {[%emt 0:00:15]} Nc6 {[%emt 0:02:22]} 6. Bb2 {[%emt 0:03:07]} Nf6 {[%emt 0:00:21]} 7. Bb5 {[%emt 0:01:13]} Bd6 {[%emt 0:00:15]} 8. O-O {[%emt 0:10:06]} O-O {[%emt 0:16:01]} 9. h3 {[%emt 0:05:00]} Bf5 {[%emt 0:20:33]} 10. d4 {[%emt 0:07:17]} cxd4 {[%emt 0:02:44]} 11. Nxd4 {[%emt 0:00:28]} Nxd4 {[%emt 0:07:32]} 12. Qxd4 {[%emt 0:26:46]} Rc8 {[%emt 0:01:07]} 13. Nc3 {[%emt 0:06:17]} a6 {[%emt 0:02:38]} 14. Be2 {[%emt 0:00:05]} Re8 {[%emt 0:01:24]} 15. Bf3 {[%emt 0:00:32]} Be5 {[%emt 0:11:09]} 16. Qd2 {[%emt 0:00:05]} Qd6 {[%emt 0:18:57]} 17. Rfe1 {[%emt 0:16:05]} b5 {[%emt 0:03:17]} 18. a3 {[%emt 0:05:51]} h5 {[%emt 0:00:35]} 19. Re2 {[%emt 0:06:33]} Qe6 {[%emt 0:02:52]} 20. Rd1 {[%emt 0:00:53]} Red8 {[%emt 0:00:30]} 21. b4 {[%emt 0:04:32]} g6 {[%emt 0:00:26]} 22. a4 {[%emt 0:00:43]} bxa4 {[%emt 0:00:37]} 23. Nxa4 {[%emt 0:00:07]} Rc2 {[%emt 0:00:27]} 24. Qe1 {[%emt 0:00:03]} Bxb2 {[%emt 0:00:25]} 25. Nxb2 {[%emt 0:00:02]} Rdc8 {[%emt 0:00:35]} 26. Na4 {[%emt 0:00:19]} R2c4 {[%emt 0:00:32]} 27. Ra2 {[%emt 0:00:51]} Bc2 {[%emt 0:00:31]} 28. Rda1 {[%emt 0:00:09]} Bb3 {[%emt 0:00:29]} 29. Ra3 {[%emt 0:00:14]} Bxa4 {[%emt 0:00:25]} 30. Rxa4 {[%emt 0:00:02]} R8c6 {[%emt 0:00:14]} 31. Be2 {[%emt 0:00:59]} Rc2 {[%emt 0:00:08]} 32. Bd3 {[%emt 0:00:14]} Rb2 {[%emt 0:00:05]} 33. Rxa6 {[%emt 0:00:19]} Rxa6 {[%emt 0:01:34]} 34. Rxa6 {[%emt 0:00:03]} Qe5 {[%emt 0:00:09]} 35. Qa1 {[%emt 0:00:47]} Qc3 {[%emt 0:00:43]} 36. b5 {[%emt 0:02:30]} Nd7 {[%emt 0:00:43]} 37. Ra2 {[%emt 0:01:45]} Rb3 {[%emt 0:00:09]} 38. Qxc3 {[%emt 0:00:07]} Rxc3 {[%emt 0:00:04]} 39. Be2 {[%emt 0:00:12]} Rb3 {[%emt 0:00:57]} 40. g4 {[%emt 0:00:00]} hxg4 {[%emt 0:00:00]} 41. hxg4 {[%emt 0:02:04]} Kf8 {[%emt 0:11:56]} 42. Rd2 {[%emt 0:09:45]} Nb6 {[%emt 0:00:10]} 43. g5 {[%emt 0:02:00]} Ke7 {[%emt 0:00:47]} 44. Kg2 {[%emt 0:01:07]} Kd6 {[%emt 0:03:27]} 45. Rd4 {[%emt 0:05:37]} Rb2 {[%emt 0:02:06]} 46. Bf1 {[%emt 0:01:15]} Kc5 {[%emt 0:03:06]} 47. Kg3 {[%emt 0:02:19]} Rb1 {[%emt 0:00:22]} 48. Bg2 {[%emt 0:01:10]} Kd6 {[%emt 0:00:21]} 1/2-1/2